fUST/lending_fUST_20240824
["ID","MTS","AMOUNT","RATE_DAILY","PERIOD"]
[335731962,1724467844094,-297.52832699,0.00013698,2]
[335731964,1724467844103,-501.35155916,0.00013698,2]
[335731966,1724467844112,-1095.05,0.00013698,2]
[335731968,1724467844121,-1095.05,0.00013698,2]
[335731970,1724467844130,-1095.05,0.00013698,2]
[335731971,1724467844140,-1095.05,0.00013698,2]
[335731974,1724467844149,-500.0,0.00013698,2]
[335731976,1724467844158,-1095.05,0.00013698,2]
[335731978,1724467844167,-1095.05,0.00013698,2]
[335731980,1724467844176,-1095.05,0.00013698,2]
[335731981,1724467844186,-1095.05,0.00013698,2]
[335731983,1724467844194,-1095.05,0.00013698,2]
[335731985,1724467844204,-500.0,0.00013698,2]
[335731987,1724467844213,-1095.05,0.00013698,2]
[335731989,1724467844223,-1095.05,0.00013698,2]
[335731991,1724467844232,-1095.05,0.00013698,2]
[335731993,1724467844241,-1095.05,0.00013698,2]
[335731995,1724467844250,-1095.08927933,0.00013698,2]
[335731997,1724467844259,-897.34,0.00013698,2]
[335731999,1724467844269,-572.82,0.00013698,2]
[335732001,1724467844279,-500.0,0.00013698,2]
[335732003,1724467844291,-1354.1,0.00013698,2]
[335732006,1724467844300,-566.48,0.00013698,2]
[335732008,1724467844309,-500.0,0.00013698,2]
[335732009,1724467844318,-500.0,0.00013698,2]
[335732012,1724467844328,-500.80362181,0.00013698,2]
[335732013,1724467844337,-524.57444368,0.00013698,2]
[335732015,1724467844346,-1183.75,0.00013698,2]
[335732017,1724467844355,-689.67,0.00013698,2]
[335732019,1724467844365,-500.0,0.00013698,2]
[335732021,1724467844374,-500.0,0.00013698,2]
[335732023,1724467844383,-500.0,0.00013698,2]
[335732025,1724467844392,-509.19,0.00013698,2]
[335732027,1724467844402,-834.3,0.00013698,2]
[335732029,1724467844411,-3439.97,0.00013698,2]
[335732032,1724467844422,-500.0,0.00013698,2]
[335732034,1724467844431,-500.0,0.00013698,2]
[335732036,1724467844441,-500.0,0.00013698,2]
[335732038,1724467844450,-500.0,0.00013698,2]
[335732040,1724467844460,-503.4434288,0.00013698,2]
[335732042,1724467844469,-500.0,0.00013698,2]
[335732044,1724467844479,-934.92,0.00013698,2]
[335732046,1724467844490,-500.0,0.00013698,2]
[335732048,1724467844499,-500.0,0.00013698,2]
[335732050,1724467844508,-500.0,0.00013698,2]
[335732052,1724467844518,-500.0,0.00013698,2]
[335732054,1724467844527,-500.0,0.00013698,2]
[335732056,1724467844536,-500.0,0.00013698,2]
[335732058,1724467844546,-500.71268256,0.00013698,2]
[335732060,1724467844555,-500.0,0.00013698,2]
[335732062,1724467844564,-823.45,0.00013698,2]
[335732064,1724467844573,-500.0,0.00013698,2]
[335732066,1724467844582,-500.0,0.00013698,2]
[335732068,1724467844592,-607.28,0.00013698,2]
[335732070,1724467844602,-500.0,0.00013698,2]
[335732072,1724467844611,-193.80537047,0.00013698,2]
[335732074,1724467844620,-500.0,0.00013698,2]
[335732076,1724467844630,-500.0,0.00013698,2]
[335732078,1724467844639,-1094.72,0.00013698,2]
[335732080,1724467844648,-500.0,0.00013698,2]
[335732082,1724467844657,-500.0,0.00013698,2]
[335732084,1724467844667,-500.0,0.00013698,2]
[335732086,1724467844676,-500.0,0.00013698,2]
[335732088,1724467844685,-500.0,0.00013698,2]
[335732091,1724467844694,-500.0,0.00013698,2]
[335732093,1724467844703,-768.49,0.00013698,2]
[335732095,1724467844712,-1341.7,0.00013698,2]
[335732096,1724467844721,-581.37,0.00013698,2]
[335732099,1724467844731,-669.47,0.00013698,2]
[335732100,1724467844740,-561.87,0.00013698,2]
[335732103,1724467844750,-1457.5163,0.00013698,2]
[335732104,1724467844759,-1457.5163,0.00013698,2]
[335732106,1724467844768,-500.0,0.00013698,2]
[335732108,1724467844778,-500.0,0.00013698,2]
[335732110,1724467844789,-500.0,0.00013698,2]
[335732112,1724467844799,-500.0,0.00013698,2]
[335732114,1724467844809,-500.0,0.00013698,2]
[335732116,1724467844818,-2834.06,0.00013698,2]
[335732118,1724467844827,-500.0,0.00013698,2]
[335732120,1724467844836,-564.65068328,0.00013698,2]
[335732122,1724467844846,-500.0,0.00013698,2]
[335732124,1724467844855,-500.0,0.00013698,2]
[335732126,1724467844864,-731.57,0.00013698,2]
[335732128,1724467844874,-500.0,0.00013698,2]
[335732130,1724467844884,-500.0,0.00013698,2]
[335732131,1724467844894,-500.0,0.00013698,2]
[335732132,1724467844903,-500.0,0.00013698,2]
[335732133,1724467844912,-1520.92,0.00013698,2]
[335732134,1724467844921,-500.0,0.00013698,2]
[335732135,1724467844930,-500.0,0.00013698,2]
[335732136,1724467844939,-500.0,0.00013698,2]
[335732137,1724467844948,-500.0,0.00013698,2]
[335732138,1724467844957,-500.0,0.00013698,2]
[335732139,1724467844967,-501.11720891,0.00013698,2]
[335732140,1724467844976,-500.0,0.00013698,2]
[335732141,1724467844985,-500.0,0.00013698,2]
[335732142,1724467844994,-568.68,0.00013698,2]
[335732143,1724467845003,-500.0,0.00013698,2]
[335732145,1724467845013,-500.0,0.00013698,2]
[335732147,1724467845022,-500.0,0.00013698,2]
[335732149,1724467845031,-500.0,0.00013698,2]
[335732151,1724467845040,-500.0,0.00013698,2]
[335732153,1724467845050,-538.29,0.00013698,2]
[335732155,1724467845058,-500.0,0.00013698,2]
[335732157,1724467845068,-812.75,0.00013698,2]
[335732159,1724467845078,-500.0,0.00013698,2]
[335732161,1724467845087,-500.0,0.00013698,2]
[335732163,1724467845097,-500.0,0.00013698,2]
[335732165,1724467845106,-766.62,0.00013698,2]
[335732167,1724467845115,-500.0,0.00013698,2]
[335732169,1724467845124,-205.27857137,0.00013698,2]
[335732171,1724467845134,-500.0,0.00013698,2]
[335732173,1724467845143,-500.0,0.00013698,2]
[335732175,1724467845153,-500.0,0.00013698,2]
[335732177,1724467845162,-500.0,0.00013698,2]
[335732179,1724467845171,-500.0,0.00013698,2]
[335732181,1724467845180,-500.0,0.00013698,2]
[335732183,1724467845189,-500.0,0.00013698,2]
[335732185,1724467845199,-500.0,0.00013698,2]
[335732187,1724467845207,-1948.03,0.00013698,2]
[335732189,1724467845217,-675.71,0.00013698,2]
[335732191,1724467845226,-596.26,0.00013698,2]
[335732193,1724467845235,-500.0,0.00013698,2]
[335732195,1724467845244,-1163.79,0.00013698,2]
[335732197,1724467845253,-500.0,0.00013698,2]
[335732199,1724467845264,-500.0,0.00013698,2]
[335732201,1724467845273,-500.0,0.00013698,2]
[335732203,1724467845283,-599.98714986,0.00013698,2]
[335732205,1724467845292,-500.0,0.00013698,2]
[335732207,1724467845302,-500.0,0.00013698,2]
[335732209,1724467845311,-500.0,0.00013698,2]
[335732211,1724467845320,-2363.95,0.00013698,2]
[335732213,1724467845330,-500.0,0.00013698,2]
[335732215,1724467845339,-500.0,0.00013698,2]
[335732217,1724467845349,-648.76,0.00013698,2]
[335732219,1724467845358,-500.0,0.00013698,2]
[335732221,1724467845368,-500.0,0.00013698,2]
[335732225,1724467845377,-500.0,0.00013698,2]
[335732227,1724467845387,-737.25,0.00013698,2]
[335732229,1724467845396,-500.0,0.00013698,2]
[335732231,1724467845406,-806.92,0.00013698,2]
[335732233,1724467845415,-500.0,0.00013698,2]
[335732235,1724467845424,-2349.32,0.00013698,2]
[335732237,1724467845434,-519.21642088,0.00013698,2]
[335732238,1724467845443,-2195.66,0.00013698,2]
[335732240,1724467845452,-1530.72,0.00013698,2]
[335732242,1724467845462,-500.0,0.00013698,2]
[335732244,1724467845472,-500.0,0.00013698,2]
[335732246,1724467845481,-500.0,0.00013698,2]
[335732248,1724467845490,-500.0,0.00013698,2]
[335732250,1724467845499,-500.0,0.00013698,2]
[335732252,1724467845509,-500.0,0.00013698,2]
[335732254,1724467845519,-900.28,0.00013698,2]
[335732257,1724467845528,-500.0,0.00013698,2]
[335732259,1724467845538,-152.05856622,0.00013698,2]
[335732260,1724467845547,-1779.7,0.00013698,2]
[335732263,1724467845558,-500.0,0.00013698,2]
[335732265,1724467845568,-500.0,0.00013698,2]
[335732267,1724467845578,-500.0,0.00013698,2]
[335732269,1724467845587,-500.0,0.00013698,2]
[335732271,1724467845597,-500.0,0.00013698,2]
[335732273,1724467845607,-500.0,0.00013698,2]
[335732275,1724467845616,-500.0,0.00013698,2]
[335732277,1724467845626,-500.0,0.00013698,2]
[335732279,1724467845635,-532.33252305,0.00013698,2]
[335732281,1724467845645,-2016.11,0.00013698,2]
[335732283,1724467845655,-751.47,0.00013698,2]
[335732285,1724467845664,-500.0,0.00013698,2]
[335732287,1724467845673,-501.47667113,0.00013698,2]
[335732289,1724467845683,-535.39,0.00013698,2]
[335732291,1724467845692,-500.0,0.00013698,2]
[335732293,1724467845702,-198.34228826,0.00013698,2]
[335732295,1724467845712,-1633.62,0.00013698,2]
[335732297,1724467845722,-500.0,0.00013698,2]
[335732299,1724467845730,-500.0,0.00013698,2]
[335732301,1724467845742,-1266.04,0.00013698,2]
[335732304,1724467845752,-500.0,0.00013698,2]
[335732306,1724467845763,-627.17,0.00013698,2]
[335732308,1724467845773,-627.15,0.00013698,2]
[335732310,1724467845782,-534.63057297,0.00013698,2]
[335732312,1724467845795,-916.81,0.00013698,2]
[335732314,1724467845806,-1132.66,0.00013698,2]
[335732316,1724467845816,-1254.01,0.00013698,2]
[335732318,1724467845825,-500.0,0.00013698,2]
[335732320,1724467845836,-500.0,0.00013698,2]
[335732322,1724467845845,-2003.38,0.00013698,2]
[335732324,1724467845855,-509.13136748,0.00013698,2]
[335732326,1724467845864,-500.0,0.00013698,2]
[335732328,1724467845876,-500.0,0.00013698,2]
[335732330,1724467845885,-500.0,0.00013698,2]
[335732332,1724467845894,-575.68528405,0.00013698,2]
[335732334,1724467845904,-500.0,0.00013698,2]
[335732336,1724467845914,-500.0,0.00013698,2]
[335732338,1724467845923,-659.14,0.00013698,2]
[335732340,1724467845933,-500.0,0.00013698,2]
[335732342,1724467845942,-983.37,0.00013698,2]
[335732344,1724467845951,-980.48,0.00013698,2]
[335732346,1724467845961,-500.0,0.00013698,2]
[335732348,1724467845970,-858.32,0.00013698,2]
[335732350,1724467845980,-500.0,0.00013698,2]
[335732352,1724467845992,-500.0,0.00013698,2]
[335732355,1724467846002,-500.0,0.00013698,2]
[335732356,1724467846011,-1007.1,0.00013698,2]
[335732358,1724467846021,-500.0,0.00013698,2]
[335732360,1724467846030,-500.0,0.00013698,2]
[335732362,1724467846040,-542.60168054,0.00013698,2]
[335732364,1724467846050,-500.0,0.00013698,2]
[335732366,1724467846059,-500.0,0.00013698,2]
[335732368,1724467846069,-1068.44,0.00013698,2]
[335732370,1724467846079,-636.45,0.00013698,2]
[335732372,1724467846088,-886.51,0.00013698,2]
[335732374,1724467846098,-987.1,0.00013698,2]
[335732377,1724467846108,-500.0,0.00013698,2]
[335732379,1724467846117,-668.48,0.00013698,2]
[335732381,1724467846127,-668.48,0.00013698,2]
[335732383,1724467846136,-668.48,0.00013698,2]
[335732385,1724467846145,-500.0,0.00013698,2]
[335732387,1724467846155,-668.48,0.00013698,2]
[335732389,1724467846164,-2911.26,0.00013698,2]
[335732391,1724467846175,-668.48,0.00013698,2]
[335732393,1724467846184,-668.48,0.00013698,2]
[335732395,1724467846193,-668.48,0.00013698,2]
[335732397,1724467846203,-668.48,0.00013698,2]
[335732399,1724467846212,-668.48,0.00013698,2]
[335732401,1724467846222,-668.48,0.00013698,2]
[335732403,1724467846232,-668.48,0.00013698,2]
[335732405,1724467846242,-631.8,0.00013698,2]
[335732407,1724467846252,-610.9,0.00013698,2]
[335732409,1724467846262,-668.48,0.00013698,2]
[335732411,1724467846272,-668.48,0.00013698,2]
[335732413,1724467846282,-668.48,0.00013698,2]
[335732415,1724467846292,-668.48,0.00013698,2]
[335732417,1724467846301,-668.48,0.00013698,2]
[335732419,1724467846311,-668.48,0.00013698,2]
[335732421,1724467846321,-668.48,0.00013698,2]
[335732423,1724467846331,-500.0,0.00013698,2]
[335732425,1724467846340,-668.48,0.00013698,2]
[335732427,1724467846350,-668.48,0.00013698,2]
[335732429,1724467846360,-668.48,0.00013698,2]
[335732431,1724467846370,-668.48,0.00013698,2]
[335732433,1724467846380,-668.48,0.00013698,2]
[335732435,1724467846389,-668.58454486,0.00013698,2]
[335732437,1724467846399,-552.49,0.00013698,2]
[335732439,1724467846408,-500.0,0.00013698,2]
[335732441,1724467846418,-896.1,0.00013698,2]
[335732444,1724467846428,-840.87,0.00013698,2]
[335732446,1724467846438,-150.0,0.00013698,2]
[335732448,1724467846447,-500.0,0.00013698,2]
[335732450,1724467846456,-1303.58,0.00013698,2]
[335732451,1724467846466,-500.0,0.00013698,2]
[335732453,1724467846475,-1050.46,0.00013698,2]
[335732455,1724467846486,-9938.62,0.00013698,2]
[335732474,1724467846660,-500.0,0.00013698,2]
[335732476,1724467846670,-500.0,0.00013698,2]
[335732478,1724467846680,-500.0,0.00013698,2]
[335732480,1724467846690,-500.0,0.00013698,2]
[335732482,1724467846699,-500.0,0.00013698,2]
[335732484,1724467846709,-500.0,0.00013698,2]
[335732486,1724467846719,-500.0,0.00013698,2]
[335732489,1724467846729,-500.0,0.00013698,2]
[335732491,1724467846740,-500.0,0.00013698,2]
[335732493,1724467846749,-500.0,0.00013698,2]
[335732495,1724467846759,-500.0,0.00013698,2]
[335732497,1724467846771,-500.0,0.00013698,2]
[335732499,1724467846781,-2368.24,0.00013698,2]
[335732501,1724467846793,-500.0,0.00013698,2]
[335732503,1724467846802,-500.0,0.00013698,2]
[335732505,1724467846812,-615.94,0.00013698,2]
[335732507,1724467846823,-500.0,0.00013698,2]
[335732509,1724467846832,-500.0,0.00013698,2]
[335732511,1724467846842,-500.0,0.00013698,2]
[335732513,1724467846851,-500.0,0.00013698,2]
[335732515,1724467846861,-500.0,0.00013698,2]
[335732517,1724467846871,-2428.93,0.00013698,2]
[335732519,1724467846881,-705.05,0.00013698,2]
[335732522,1724467846890,-500.0,0.00013698,2]
[335732524,1724467846900,-13086.57,0.00013698,2]
[335732526,1724467846910,-583.92,0.00013698,2]
[335732528,1724467846919,-500.0,0.00013698,2]
[335732530,1724467846928,-500.0,0.00013698,2]
[335732531,1724467846938,-1108.81,0.00013698,2]
[335732533,1724467846948,-2980.12,0.00013698,2]
[335732535,1724467846958,-719.97,0.00013698,2]
[335732537,1724467846967,-983.62,0.00013698,2]
[335732539,1724467846977,-2151.26,0.00013698,2]
[335732542,1724467846988,-3728.42,0.00013698,2]
[335732544,1724467846997,-929.14,0.00013698,2]
[335732546,1724467847007,-427.47475264,0.00013698,2]
[335732548,1724467847016,-500.0,0.00013698,2]
[335732550,1724467847029,-531.27393272,0.00013698,2]
[335732552,1724467847039,-1458.69,0.00013698,2]
[335732554,1724467847049,-500.0,0.00013698,2]
[335732556,1724467847058,-500.0,0.00013698,2]
[335732558,1724467847068,-500.0,0.00013698,2]
[335732560,1724467847077,-561.11,0.00013698,2]
[335732562,1724467847087,-6870.65,0.00013698,2]
[335732564,1724467847096,-720.91,0.00013698,2]
[335732566,1724467847106,-501.38933766,0.00013698,2]
[335732568,1724467847115,-500.0,0.00013698,2]
[335732570,1724467847125,-2619.86,0.00013698,2]
[335732573,1724467847135,-2619.86,0.00013698,2]
[335732575,1724467847146,-2619.86,0.00013698,2]
[335732577,1724467847155,-2619.86,0.00013698,2]
[335732579,1724467847165,-1074.84,0.00013698,2]
[335732581,1724467847174,-2619.86,0.00013698,2]
[335732583,1724467847184,-2619.86,0.00013698,2]
[335732585,1724467847193,-2619.86,0.00013698,2]
[335732587,1724467847203,-2619.86,0.00013698,2]
[335732589,1724467847213,-2619.86,0.00013698,2]
[335732591,1724467847223,-500.0,0.00013698,2]
[335732593,1724467847233,-2619.86,0.00013698,2]
[335732595,1724467847255,-2619.86,0.00013698,2]
[335732597,1724467847265,-2619.86,0.00013698,2]
[335732599,1724467847274,-2619.86,0.00013698,2]
[335732601,1724467847283,-500.0,0.00013698,2]
[335732603,1724467847293,-2619.86,0.00013698,2]
[335732605,1724467847303,-2619.86,0.00013698,2]
[335732607,1724467847312,-2619.86,0.00013698,2]
[335732610,1724467847322,-2619.86,0.00013698,2]
[335732612,1724467847332,-2619.86,0.00013698,2]
[335732614,1724467847342,-500.0,0.00013698,2]
[335732616,1724467847352,-2619.86,0.00013698,2]
[335732618,1724467847361,-577.65,0.00013698,2]
[335732620,1724467847371,-2619.86,0.00013698,2]
[335732622,1724467847381,-2619.86,0.00013698,2]
[335732624,1724467847390,-2619.86,0.00013698,2]
[335732626,1724467847400,-2619.86,0.00013698,2]
[335732628,1724467847409,-2619.9213794,0.00013698,2]
[335732630,1724467847419,-501.38961216,0.00013698,2]
[335732632,1724467847429,-1316.34,0.00013698,2]
[335732634,1724467847438,-1500.2,0.00013698,2]
[335732636,1724467847448,-518.9,0.00013698,2]
[335732638,1724467847457,-159.93009355,0.00013698,2]
[335732640,1724467847467,-2142.23,0.00013698,2]
[335732642,1724467847477,-500.0,0.00013698,2]
[335732644,1724467847495,-3850.74,0.00013698,2]
[335732646,1724467847508,-500.0,0.00013698,2]
[335732648,1724467847518,-500.0,0.00013698,2]
[335732650,1724467847528,-500.0,0.00013698,2]
[335732652,1724467847537,-501.78015045,0.00013698,2]
[335732654,1724467847546,-500.0,0.00013698,2]
[335732656,1724467847556,-500.0,0.00013698,2]
[335732658,1724467847565,-500.0,0.00013698,2]
[335732660,1724467847574,-1009.95,0.00013698,2]
[335732662,1724467847583,-500.0,0.00013698,2]
[335732664,1724467847593,-500.0,0.00013698,2]
[335732666,1724467847603,-725.7,0.00013698,2]
[335732668,1724467847612,-500.0,0.00013698,2]
[335732670,1724467847622,-500.0,0.00013698,2]
[335732672,1724467847632,-500.0,0.00013698,2]
[335732674,1724467847643,-1016.11,0.00013698,2]
[335732676,1724467847653,-2422.32,0.00013698,2]
[335732678,1724467847664,-500.0,0.00013698,2]
[335732680,1724467847674,-1149.07,0.00013698,2]
[335732682,1724467847683,-500.0,0.00013698,2]
[335732684,1724467847692,-500.0,0.00013698,2]
[335732686,1724467847702,-500.0,0.00013698,2]
[335732688,1724467847711,-500.0,0.00013698,2]
[335732690,1724467847722,-4321.23505093,0.00013698,2]
[335732763,1724467848548,-523.30494907,0.00013698,2]
[335732765,1724467848558,-500.0,0.00013698,2]
[335732767,1724467848567,-500.0,0.00013698,2]
[335732769,1724467848576,-500.0,0.00013698,2]
[335732771,1724467848586,-343.97804973,0.00013698,2]
[335732773,1724467848596,-504.91863653,0.00013698,2]
[335732775,1724467848605,-499.71456582,0.00013698,2]
[335732777,1724467848616,-790.79611156,0.00013698,2]
[335732828,1724467849193,-3094.20831595,0.00012985,2]
[335732829,1724467849203,-812.11503393,0.00012999,2]
[335732830,1724467849213,-680.78662044,0.00013497,2]
[335732831,1724467849223,-160.93233548,0.00013596,2]
[335732832,1724467849233,-3364.2243556,0.00013688,2]
[335732833,1724467849245,-8911.62932262,0.00013698,2]
[335732834,1724467849255,-500.0,0.00013698,2]
[335732835,1724467849266,-500.0,0.00013698,2]
[335732836,1724467849276,-500.0,0.00013698,2]
[335732837,1724467849286,-500.0,0.00013698,2]
[335732838,1724467849296,-500.0,0.00013698,2]
[335732839,1724467849306,-1329.62,0.00013698,2]
[335732841,1724467849315,-7046.81,0.00013698,2]
[335732842,1724467849325,-912.33,0.00013698,2]
[335732844,1724467849334,-500.0,0.00013698,2]
[335732846,1724467849345,-668.27,0.00013698,2]
[335732848,1724467849355,-687.45,0.00013698,2]
[335732850,1724467849364,-720.6,0.00013698,2]
[335732852,1724467849374,-500.0,0.00013698,2]
[335732854,1724467849384,-500.0,0.00013698,2]
[335732857,1724467849396,-753.43,0.00013698,2]
[335732859,1724467849406,-500.0,0.00013698,2]
[335732861,1724467849416,-1991.38,0.00013698,2]
[335732886,1724467849647,-500.0,0.00013698,2]
[335732888,1724467849657,-5011.97,0.00013698,2]
[335732890,1724467849668,-1023.12,0.00013698,2]
[335732893,1724467849677,-500.0,0.00013698,2]
[335732894,1724467849687,-500.0,0.00013698,2]
[335732897,1724467849697,-500.0,0.00013698,2]
[335732899,1724467849707,-500.0,0.00013698,2]
[335732901,1724467849716,-898.82,0.00013698,2]
[335732903,1724467849726,-1127.28,0.00013698,2]
[335732905,1724467849735,-500.0,0.00013698,2]
[335732907,1724467849746,-500.0,0.00013698,2]
[335732909,1724467849756,-500.0,0.00013698,2]
[335732911,1724467849766,-500.0,0.00013698,2]
[335732913,1724467849777,-1518.94,0.00013698,2]
[335732915,1724467849786,-572.33,0.00013698,2]
[335732917,1724467849798,-10332.39,0.00013698,2]
[335732919,1724467849808,-500.0,0.00013698,2]
[335732921,1724467849818,-449.81063824,0.00013698,2]
[335732923,1724467849827,-500.0,0.00013698,2]
[335732925,1724467849837,-500.0,0.00013698,2]
[335732927,1724467849847,-500.0,0.00013698,2]
[335732930,1724467849858,-500.0,0.00013698,2]
[335732931,1724467849868,-500.0,0.00013698,2]
[335732934,1724467849878,-6416.23,0.00013698,2]
[335732936,1724467849888,-500.0,0.00013698,2]
[335732938,1724467849897,-500.0,0.00013698,2]
[335732940,1724467849907,-500.0,0.00013698,2]
[335732941,1724467849916,-12395.55,0.00013698,2]
[335732944,1724467849926,-500.0,0.00013698,2]
[335732946,1724467849940,-717.41,0.00013698,2]
[335732948,1724467849950,-500.0,0.00013698,2]
[335732950,1724467849960,-500.0,0.00013698,2]
[335732952,1724467849970,-500.0,0.00013698,2]
[335732954,1724467849980,-682.37,0.00013698,2]
[335732956,1724467849991,-500.0,0.00013698,2]
[335732958,1724467850001,-500.0,0.00013698,2]
[335732960,1724467850010,-500.0,0.00013698,2]
[335732962,1724467850020,-500.0,0.00013698,2]
[335732964,1724467850029,-500.0,0.00013698,2]
[335732966,1724467850038,-769.96,0.00013698,2]
[335732968,1724467850048,-500.0,0.00013698,2]
[335732970,1724467850058,-3692.17,0.00013698,2]
[335732972,1724467850067,-1471.4,0.00013698,2]
[335732975,1724467850078,-1157.37,0.00013698,2]
[335732977,1724467850087,-500.0,0.00013698,2]
[335732979,1724467850097,-894.63,0.00013698,2]
[335732981,1724467850107,-500.0,0.00013698,2]
[335732983,1724467850116,-601.53,0.00013698,2]
[335732985,1724467850126,-995.27,0.00013698,2]
[335732987,1724467850136,-500.0,0.00013698,2]
[335732989,1724467850146,-500.0,0.00013698,2]
[335732991,1724467850156,-500.0,0.00013698,2]
[335732993,1724467850165,-22909.49,0.00013698,2]
[335732995,1724467850175,-14688.01,0.00013698,2]
[335732997,1724467850185,-500.0,0.00013698,2]
[335732999,1724467850194,-1105.63,0.00013698,2]
[335733001,1724467850204,-389.45330612,0.00013698,2]
[335733003,1724467850213,-776.69,0.00013698,2]
[335733005,1724467850223,-500.0,0.00013698,2]
[335733007,1724467850232,-500.0,0.00013698,2]
[335733009,1724467850244,-690.6,0.00013698,2]
[335733011,1724467850254,-372.73170538,0.00013698,2]
[335733013,1724467850264,-500.0,0.00013698,2]
[335733015,1724467850274,-762.63,0.00013698,2]
[335733017,1724467850284,-1473.43,0.00013698,2]
[335733020,1724467850293,-500.0,0.00013698,2]
[335733022,1724467850303,-1449.3,0.00013698,2]
[335733024,1724467850312,-500.0,0.00013698,2]
[335733026,1724467850321,-500.0,0.00013698,2]
[335733028,1724467850331,-2714.33,0.00013698,2]
[335733030,1724467850340,-500.0,0.00013698,2]
[335733032,1724467850351,-606.27,0.00013698,2]
[335733034,1724467850361,-896.18,0.00013698,2]
[335733036,1724467850370,-3966.1,0.00013698,2]
[335733038,1724467850380,-500.0,0.00013698,2]
[335733040,1724467850389,-500.0,0.00013698,2]
[335733042,1724467850399,-500.0,0.00013698,2]
[335733044,1724467850409,-500.0,0.00013698,2]
[335733046,1724467850419,-500.0,0.00013698,2]
[335733048,1724467850429,-500.0,0.00013698,2]
[335733050,1724467850439,-518.31460666,0.00013698,2]
[335733052,1724467850449,-500.0,0.00013698,2]
[335733054,1724467850459,-921.93,0.00013698,2]
[335733056,1724467850468,-500.0,0.00013698,2]
[335733058,1724467850478,-500.0,0.00013698,2]
[335733061,1724467850488,-500.0,0.00013698,2]
[335733063,1724467850497,-883.54,0.00013698,2]
[335733065,1724467850508,-5154.78,0.00013698,2]
[335733067,1724467850518,-500.0,0.00013698,2]
[335733069,1724467850527,-500.0,0.00013698,2]
[335733071,1724467850537,-478.95369614,0.00013698,2]
[335733073,1724467850546,-500.0,0.00013698,2]
[335733075,1724467850556,-500.0,0.00013698,2]
[335733077,1724467850566,-500.0,0.00013698,2]
[335733079,1724467850576,-1314.67,0.00013698,2]
[335733080,1724467850586,-500.0,0.00013698,2]
[335733082,1724467850596,-500.0,0.00013698,2]
[335733084,1724467850606,-500.0,0.00013698,2]
[335733085,1724467850615,-500.0,0.00013698,2]
[335733086,1724467850625,-500.0,0.00013698,2]
[335733087,1724467850635,-500.0,0.00013698,2]
[335733088,1724467850644,-630.92,0.00013698,2]
[335733089,1724467850654,-500.0,0.00013698,2]
[335733090,1724467850664,-7930.45,0.00013698,2]
[335733091,1724467850674,-500.0,0.00013698,2]
[335733092,1724467850683,-500.0,0.00013698,2]
[335733093,1724467850692,-2625.55,0.00013698,2]
[335733094,1724467850703,-500.0,0.00013698,2]
[335733095,1724467850712,-500.0,0.00013698,2]
[335733096,1724467850721,-500.0,0.00013698,2]